bitfinex/quotes_SOLUSD_20260120
["timestamp","ask_amount","ask_price","bid_price","bid_amount"]
[1768902086229,2.55701166,128.73,128.69,4.8926702]
[1768902089527,2.55701166,128.72,128.68,17.02]
[1768902089707,2.55701166,128.72,128.68,20.73031004]
[1768902090106,2.55701166,128.72,128.68,3.71031004]
[1768902090333,2.55701166,128.72,128.68,4.87221834]
[1768902095143,2.55701166,128.72,128.69,3.71031004]
[1768902101341,2.55701166,128.72,128.68,1.1619083]
[1768902101526,2.55701166,128.72,128.68,4.87221834]
[1768902104737,2.63663535,128.71,128.68,4.87221834]
[1768902104919,2.63663535,128.71,128.67,4.80341565]
[1768902105346,2.5766353,128.71,128.67,4.80341565]
[1768902105642,2.5766353,128.71,128.67,3.71031004]
[1768902105813,2.5766353,128.71,128.67,4.85923897]
[1768902107043,11.47980755,128.71,128.65,12.62792911]
[1768902107440,2.63663535,128.7,128.65,12.62792911]
[1768902107638,2.63663535,128.7,128.66,1.14071885]
[1768902108346,2.63663535,128.7,128.66,4.85102889]
[1768902110234,2.63663535,128.69,128.66,1.14071885]
[1768902113151,2.63663535,128.69,128.65,1.12169054]
[1768902113746,6.34694539,128.69,128.65,1.12169054]
[1768902113953,2.59556088,128.68,128.65,1.12169054]
[1768902115148,2.59556088,128.68,128.65,8.89468045]
[1768902118545,2.59556088,128.68,128.65,1.12169054]
[1768902119258,2.59556088,128.68,128.63,7.77405707]
[1768902119259,2.59556088,128.67,128.63,7.77405707]
[1768902119455,2.53556088,128.66,128.63,8.86907071]
[1768902124165,2.59556088,128.64,128.61,1.14257175]
[1768902124468,2.59556088,128.64,128.61,8.91789372]
[1768902125759,2.59556088,128.63,128.6,0.1]
[1768902126064,3.71031004,128.63,128.6,0.1]
[1768902126441,3.66374842,128.63,128.6,0.1]
[1768902126858,3.71031004,128.62,128.6,0.1]
[1768902127450,3.71031004,128.63,128.6,0.1]
[1768902127855,2.59556088,128.62,128.6,0.1]
[1768902129757,3.71031004,128.62,128.6,0.1]
[1768902129946,2.59556088,128.61,128.6,0.1]
[1768902130263,2.59556088,128.6,128.57,1.3866376]
[1768902133161,2.59556088,128.58,128.57,0.1]
[1768902133358,2.53556088,128.58,128.57,0.1]
[1768902133872,11.49754931,128.58,128.55,0.74111312]
[1768902134050,3.71980188,128.57,128.55,0.74111312]
[1768902135067,3.65980188,128.57,128.55,0.74111312]
[1768902135275,3.71980188,128.59,128.55,3.18390982]
[1768902135454,7.77570004,128.61,128.56,2.4427967]
[1768902135653,3.71980188,128.6,128.56,2.4427967]
[1768902135870,3.71980188,128.59,128.56,2.4427967]
[1768902136672,3.71980188,128.59,128.55,3.18390982]
[1768902137572,3.71980188,128.58,128.55,3.18390982]
[1768902140265,3.71980188,128.58,128.55,0.74111312]
[1768902140579,3.71980188,128.58,128.56,2.4427967]
[1768902140955,3.71980188,128.58,128.55,3.18390982]
[1768902141158,3.71980188,128.57,128.55,0.74111312]
[1768902142068,3.71980188,128.57,128.55,3.18390982]
[1768902142760,3.71980188,128.58,128.55,3.18390982]
[1768902144362,27.21194214,128.62,128.56,2.44302142]
[1768902144705,3.71980188,128.61,128.56,2.44302142]
[1768902144887,109.87443225,128.63,128.56,2.44302142]
[1768902145183,109.87443225,128.63,128.57,2.44302142]
[1768902145184,3.71980188,128.62,128.57,2.44302142]
[1768902146273,3.71980188,128.62,128.58,2.44302142]
[1768902146483,11.49343372,128.64,128.59,2.44302142]
[1768902146681,7.77363184,128.64,128.59,2.44302142]
[1768902146983,3.71980188,128.64,128.59,2.44302142]
[1768902148182,3.71980188,128.64,128.6,2.44302142]
[1768902149704,19.43164993,128.66,128.6,2.44302142]
[1768902149705,7.77268303,128.66,128.6,2.44302142]
[1768902149875,3.71980188,128.66,128.61,2.44302142]
[1768902150488,3.71980188,128.66,128.62,2.44302142]
[1768902151070,11.49223127,128.66,128.62,2.44302142]
[1768902151874,3.71980188,128.65,128.61,2.44302142]
[1768902152586,3.71980188,128.64,128.6,2.44302142]
[1768902153581,3.71980188,128.63,128.59,2.44302142]
[1768902154184,3.71980188,128.62,128.59,2.44302142]
[1768902155270,3.71980188,128.61,128.58,2.44302142]
[1768902157403,7.77363184,128.64,128.58,2.44302142]
[1768902157596,3.71980188,128.62,128.58,2.44302142]
[1768902159378,6.52397323,128.68,128.58,2.44302142]
[1768902159600,7.77061154,128.69,128.61,2.44302142]
[1768902159904,3.71980188,128.65,128.61,2.44302142]
[1768902163900,27.20072138,128.68,128.61,2.44302142]
[1768902164099,3.71980188,128.65,128.61,2.44302142]
[1768902170409,7.7720697,128.67,128.62,2.23801235]
[1768902170583,3.71980188,128.66,128.62,2.23801235]
[1768902170783,113.59126494,128.68,128.63,2.23801235]
[1768902172210,42.76080941,128.7,128.65,2.23801235]
[1768902172419,3.71980188,128.69,128.65,2.2080124]
[1768902176110,11.49049414,128.69,128.65,2.2080124]
[1768902176989,3.71980188,128.67,128.63,2.15963789]
[1768902177687,3.71980188,128.68,128.63,2.15963789]
[1768902178112,27.19722112,128.69,128.63,2.15963789]
[1768902178312,11.49118555,128.68,128.63,2.15963789]
[1768902178994,3.71980188,128.67,128.63,2.15963789]
[1768902179915,3.71980188,128.66,128.61,2.15963789]
[1768902180425,11.49237714,128.66,128.61,2.15963789]
[1768902180722,3.71980188,128.65,128.61,2.15963789]
[1768902182016,3.71980188,128.64,128.6,2.15963789]
[1768902182259,3.71980188,128.63,128.6,2.15963789]
[1768902184026,3.71980188,128.64,128.6,2.15963789]
[1768902185195,3.71980188,128.63,128.6,2.15963789]
[1768902187108,11.49405824,128.63,128.58,2.15963789]
[1768902189770,3.71980188,128.64,128.59,2.15963789]
[1768902190933,3.71980188,128.63,128.59,2.15963789]
[1768902191838,11.49415032,128.63,128.59,2.15963789]
[1768902192022,7.7741991,128.64,128.59,2.15963789]
[1768902192333,3.71980188,128.63,128.59,2.15963789]
[1768902193308,3.71980188,128.62,128.59,2.15963789]
[1768902194437,19.4340796,128.64,128.59,2.15963789]
[1768902194638,11.49431507,128.63,128.59,2.15963789]
[1768902195030,11.49351579,128.63,128.59,2.15963789]
[1768902195852,3.7190026,128.62,128.59,2.15963789]
[1768902196852,7.77451319,128.63,128.59,2.15963789]
[1768902197029,3.7190026,128.62,128.59,2.15963789]
[1768902197846,3.7190026,128.61,128.56,2.15963789]
[1768902198051,27.21010364,128.63,128.56,2.15963789]
[1768902198052,3.7190026,128.6,128.56,2.15963789]
[1768902199753,3.7190026,128.59,128.56,2.15963789]
[1768902200346,11.49506239,128.6,128.56,2.15963789]
[1768902201328,3.7190026,128.59,128.56,2.15963789]
[1768902201527,11.49506239,128.6,128.56,2.15963789]
[1768902203450,3.7190026,128.59,128.56,2.15963789]
[1768902204151,7.77544514,128.61,128.56,2.15963789]
[1768902204339,3.7190026,128.6,128.56,2.15963789]
[1768902204532,11.49515045,128.6,128.56,2.15963789]
[1768902206455,3.7190026,128.59,128.56,2.15963789]
[1768902207352,3.7190026,128.57,128.56,2.15963789]
[1768902207731,3.7190026,128.58,128.56,2.15963789]
[1768902209255,3.7190026,128.59,128.56,2.15963789]
[1768902210764,3.7190026,128.6,128.56,2.15963789]
[1768902213956,7.77597183,128.61,128.56,2.15963789]
[1768902214151,11.49497443,128.61,128.56,2.15963789]
[1768902214461,119.14,128.63,128.57,2.15665288]
[1768902214462,3.7190026,128.62,128.57,2.15665288]
[1768902214656,7.77437181,128.63,128.58,2.15665288]
[1768902214857,3.7190026,128.63,128.59,2.15665288]
[1768902215065,3.7190026,128.64,128.59,2.15665288]
[1768902215439,36.47201919,128.66,128.59,2.15665288]
[1768902215640,3.7190026,128.64,128.59,2.15665288]
[1768902215840,36.47201919,128.66,128.59,2.15665288]
[1768902216047,3.7190026,128.64,128.59,2.15665288]
[1768902217551,11.49277331,128.64,128.59,2.15665288]
[1768902219344,3.7190026,128.63,128.59,2.15665288]
[1768902219542,7.77302759,128.65,128.59,2.15665288]
[1768902219769,3.7190026,128.64,128.59,2.15665288]
[1768902220040,3.7190026,128.63,128.59,2.15665288]
[1768902220365,3.7190026,128.64,128.59,2.15665288]
[1768902220954,3.7190026,128.63,128.59,2.15665288]
[1768902221262,11.49334002,128.63,128.59,2.15665288]
[1768902221469,3.7190026,128.62,128.59,2.15665288]
[1768902222382,7.77433742,128.63,128.59,2.15665288]
[1768902222547,3.7190026,128.62,128.59,2.15665288]
[1768902224278,3.7190026,128.62,128.58,1.93900024]
[1768902224574,3.7190026,128.63,128.58,1.93900024]
[1768902224786,3.7190026,128.63,128.59,1.93900024]
[1768902227754,11.49328651,128.63,128.59,1.93900024]
[1768902227963,3.7190026,128.63,128.59,1.93900024]
[1768902229279,11.49292195,128.64,128.59,1.93900024]
[1768902229590,3.7190026,128.63,128.59,1.93900024]
[1768902232862,11.49292195,128.64,128.59,1.93900024]
[1768902234991,61.93836356,128.67,128.61,1.90508198]
[1768902235195,53.99897147,128.67,128.62,1.90508198]
[1768902235486,53.99897147,128.67,128.63,1.90508198]
[1768902235862,50.27996887,128.67,128.63,1.90508198]
[1768902236065,42.50798413,128.67,128.63,1.90508198]
[1768902243287,46.22698673,128.67,128.63,1.90508198]
[1768902246302,46.22698673,128.67,128.65,35.87514048]
[1768902246504,53.99896156,128.67,128.65,23.76427116]
[1768902246801,53.99896156,128.67,128.59,1.90508198]
[1768902246802,3.7190026,128.66,128.59,1.90508198]
[1768902247100,3.7190026,128.64,128.59,1.90508198]
[1768902247980,3.7190026,128.63,128.59,1.90508198]
[1768902248505,11.49326201,128.63,128.59,1.90508198]
[1768902252106,11.49399185,128.62,128.56,11.49742874]
[1768902252305,11.49399185,128.62,128.57,1.90508198]
[1768902252906,3.7190026,128.61,128.57,1.90508198]
[1768902254489,27.20982663,128.63,128.57,1.90508198]
[1768902254690,3.7190026,128.61,128.57,1.90508198]
[1768902254993,3.7200163,128.61,128.57,1.90508198]
[1768902257510,11.49550596,128.61,128.57,1.90508198]
[1768902257684,3.7200163,128.6,128.57,1.90508198]
[1768902258889,11.49550596,128.61,128.57,1.90508198]
[1768902262705,3.7200163,128.6,128.57,1.90508198]
[1768902264712,7.7756504,128.61,128.57,1.90508198]
[1768902264897,3.7200163,128.61,128.57,1.90508198]
[1768902265092,24.81504393,128.62,128.57,1.90508198]
[1768902265298,105.8200163,128.63,128.58,1.9209953]
[1768902266417,105.8200163,128.63,128.59,1.9209953]
[1768902266619,3.7200163,128.63,128.59,1.9209953]
[1768902269409,3.7200163,128.62,128.59,1.9209953]
[1768902271833,3.7200163,128.61,128.57,1.9209953]
[1768902273112,24.81448148,128.63,128.57,1.9209953]
[1768902273312,3.7200163,128.61,128.57,1.9209953]
[1768902275616,24.81448148,128.63,128.58,1.9209953]
[1768902275918,3.7200163,128.62,128.58,1.9209953]
[1768902278732,17.04,128.63,128.59,1.9209953]
[1768902278911,28.53426813,128.63,128.59,1.9209953]
[1768902281028,3.7200163,128.62,128.59,1.9209953]
[1768902282626,3.7200163,128.64,128.6,1.9209953]
[1768902283323,3.7200163,128.63,128.6,1.9209953]
[1768902284604,4.22686678,128.63,128.6,1.9209953]
[1768902286208,3.7200163,128.62,128.58,7.77708969]
[1768902286430,4.22010075,128.62,128.59,1.92739216]
[1768902291433,0.4753329,128.63,128.59,1.92739216]
[1768902291613,4.1953492,128.63,128.59,1.92739216]
[1768902291931,3.7200163,128.63,128.59,1.92739216]
[1768902292537,3.7200163,128.63,128.6,1.92739216]
[1768902292835,21.22837041,128.64,128.6,1.92739216]
[1768902295022,3.7200163,128.63,128.6,1.92739216]
[1768902295230,4.16124765,128.63,128.6,1.92739216]
[1768902295813,3.7200163,128.63,128.6,1.92739216]
[1768902296334,8.20829758,128.64,128.6,1.92739216]
[1768902296529,3.7200163,128.63,128.6,1.92739216]
[1768902297433,8.20829758,128.64,128.6,1.92739216]
[1768902297635,3.7200163,128.63,128.6,1.92739216]
[1768902298430,3.7200163,128.62,128.59,1.83728702]
[1768902298935,3.7200163,128.63,128.6,1.83728702]
[1768902299135,3.7200163,128.64,128.6,1.83728702]
[1768902299631,4.12906008,128.64,128.6,1.83728702]
[1768902300227,138.57145965,128.66,128.6,1.83728702]
[1768902300228,102.50904378,128.66,128.61,1.83728702]
[1768902300426,102.1,128.66,128.62,1.83728702]
[1768902300624,42.50798413,128.67,128.62,1.83728702]
[1768902301521,46.62468083,128.67,128.62,1.83728702]
[1768902301727,42.90466453,128.67,128.62,1.83728702]
[1768902301927,46.62468083,128.67,128.62,1.83728702]
[1768902302237,46.62468083,128.67,128.62,9.61207954]
[1768902302416,46.62468083,128.67,128.63,1.83728702]
[1768902302910,3.7200163,128.66,128.63,1.83728702]
[1768902303920,46.62468083,128.67,128.63,1.83728702]
[1768902306056,42.90466453,128.67,128.63,1.83728702]
[1768902306221,46.22800043,128.67,128.63,1.83728702]
[1768902307644,46.5892593,128.67,128.63,1.83728702]
[1768902307847,42.869243,128.67,128.63,1.83728702]
[1768902308048,46.5892593,128.67,128.63,1.83728702]
[1768902308859,42.869243,128.67,128.63,1.83728702]
[1768902309160,42.50798413,128.67,128.63,1.83728702]
[1768902310248,11.48995233,128.71,128.65,3.7200163]
[1768902310439,19.4230435,128.72,128.71,2.1599639]
[1768902310440,7.76898197,128.72,128.71,2.1599639]
[1768902310641,7.76898197,128.72,128.71,2.09996402]
[1768902310840,11.48899827,128.72,128.68,1.83728702]
[1768902311149,7.76898197,128.72,128.68,1.83728702]
[1768902311349,3.7200163,128.71,128.68,1.83728702]
[1768902312453,11.7796474,128.72,128.68,1.83728702]
[1768902315451,11.7796474,128.72,128.67,1.83728702]
[1768902315452,4.00437365,128.71,128.67,1.83728702]
[1768902316954,3.99834628,128.71,128.67,1.83728702]
[1768902317755,0.28435735,128.71,128.67,1.83728702]
[1768902318460,11.4829709,128.72,128.67,1.83728702]
[1768902318755,7.76898197,128.72,128.67,1.83728702]
[1768902319254,8.08324257,128.72,128.67,1.83728702]
[1768902320438,0.33362803,128.71,128.67,1.83728702]
[1768902320638,11.81659893,128.72,128.67,1.83728702]
[1768902323362,0.36185293,128.71,128.67,1.83728702]
[1768902324450,0.36185293,128.71,128.68,1.74962967]
[1768902325160,4.07584186,128.71,128.67,1.74962967]
[1768902325655,0.36185293,128.71,128.67,1.74962967]
[1768902325858,4.30310533,128.74,128.68,1.74962967]
[1768902326068,4.30310533,128.74,128.7,1.74962967]
[1768902326069,0.2,128.74,128.7,1.74962967]
[1768902331855,0.44088887,128.73,128.7,1.74962967]
[1768902334553,0.44088887,128.73,128.67,19.42954845]
[1768902334554,0.46546008,128.72,128.68,1.74962967]
[1768902334949,3.71398893,128.73,128.68,1.74962967]
[1768902334950,4.17944901,128.73,128.69,1.74962967]
[1768902335866,4.38745199,128.74,128.7,1.74962967]
[1768902336060,0.2,128.74,128.7,1.74962967]
[1768902336258,0.68137411,128.74,128.7,1.74962967]
[1768902337968,0.2,128.74,128.7,1.74962967]
[1768902338356,0.2,128.74,128.7,9.51962237]
[1768902338563,0.2,128.74,128.71,1.74962967]
[1768902342581,4.2409573,128.73,128.7,1.74962967]
[1768902342877,0.52696837,128.73,128.7,1.74962967]
[1768902343380,3.91398893,128.74,128.7,1.74962967]
[1768902343381,4.4409573,128.74,128.7,1.74962967]
[1768902343986,4.4409573,128.74,128.69,7.7703545]
[1768902343987,4.25546648,128.73,128.69,1.7865876]
[1768902344288,0.54147755,128.73,128.69,1.7865876]
[1768902344970,4.46259632,128.74,128.7,1.7865876]
[1768902346191,0.2,128.74,128.7,1.7865876]
[1768902346375,0.2,128.74,128.71,1.7865876]
[1768902354920,0.2,128.74,128.72,1.94931345]
[1768902355098,0.2,128.76,128.73,1.94931345]
[1768902356681,0.83417487,128.74,128.71,1.94931345]
[1768902357800,4.5481638,128.74,128.71,1.94931345]
[1768902361492,4.57682242,128.73,128.69,1.94931345]
[1768902361877,4.57682242,128.72,128.69,1.94931345]
[1768902362199,3.71398893,128.7,128.66,1.94931345]
[1768902362429,0.86807746,128.73,128.67,1.94931345]
[1768902362592,0.86807746,128.73,128.68,1.94931345]
[1768902362908,4.58206639,128.74,128.69,1.94931345]
[1768902363920,0.86807746,128.74,128.69,1.94931345]
[1768902364204,4.58206639,128.74,128.69,1.94931345]
[1768902364891,1.07838539,128.76,128.71,3.71398893]
[1768902365098,0.2,128.76,128.73,1.94931345]
[1768902365413,0.2,128.76,128.72,3.71398893]
[1768902365414,0.2,128.78,128.74,3.71398893]
[1768902365611,0.2,128.78,128.75,1.94931345]
[1768902366195,0.2,128.78,128.75,5.66330238]
[1768902366414,0.2,128.78,128.76,1.94931345]
[1768902370818,7.96404196,128.8,128.76,1.94931345]
[1768902371002,0.2,128.8,128.78,1.94931345]
[1768902372094,0.2,128.8,128.79,1.94931345]
[1768902372300,0.2,128.81,128.8,1.91931346]
[1768902372610,0.2,128.83,128.8,3.71398893]
[1768902373321,0.2,128.83,128.78,11.47888397]
[1768902374302,0.2,128.83,128.79,1.94931345]
[1768902375832,5.6765366,128.83,128.79,1.94931345]
[1768902376127,3.91398893,128.83,128.79,1.94931345]
[1768902376629,0.2,128.83,128.79,1.94931345]
[1768902376930,3.90693986,128.83,128.79,1.94931345]
[1768902378728,0.2,128.83,128.79,1.94931345]
[1768902379230,3.90693986,128.83,128.79,1.94931345]
[1768902379528,0.2,128.83,128.79,1.94931345]
[1768902379713,3.90693986,128.83,128.79,1.94931345]
[1768902380624,3.70693986,128.82,128.79,1.94931345]
[1768902380823,5.49863446,128.81,128.78,1.94931345]
[1768902381917,3.70693986,128.81,128.78,1.94931345]
[1768902383932,5.5043313,128.82,128.78,1.94931345]
[1768902384113,3.70693986,128.82,128.78,1.94931345]
[1768902387736,3.70693986,128.81,128.78,1.94931345]
[1768902390551,3.70693986,128.81,128.78,1.52496632]
[1768902390933,1.83547867,128.82,128.78,1.52496632]
[1768902391131,3.70693986,128.81,128.78,1.52496632]
[1768902391428,1.83547867,128.82,128.78,1.52496632]
[1768902391628,3.70693986,128.81,128.78,1.52496632]
[1768902392655,5.54241853,128.82,128.78,1.52496632]
[1768902397026,5.54241853,128.82,128.79,2.03388369]
[1768902399326,3.90693986,128.83,128.8,2.03388369]
[1768902399555,5.89190915,128.83,128.8,2.03388369]
[1768902401656,1.98496929,128.81,128.78,2.03388369]
[1768902401950,3.70693986,128.81,128.78,2.03388369]
[1768902402250,3.70693986,128.82,128.78,2.03388369]
[1768902402648,3.70693986,128.81,128.78,2.03388369]
[1768902402854,5.69190915,128.82,128.78,2.03388369]
[1768902403665,5.66532471,128.81,128.78,2.03388369]
[1768902403868,5.66532471,128.8,128.77,2.14583279]
[1768902404568,1.95838485,128.8,128.77,2.14583279]
[1768902405751,1.95838485,128.8,128.77,9.91153624]
[1768902407049,5.66532471,128.81,128.78,2.14583279]
[1768902407259,5.66532471,128.81,128.78,2.11583279]
[1768902410364,1.95838485,128.8,128.77,2.14583279]
[1768902410663,3.70693986,128.82,128.77,2.14583279]
[1768902410839,5.66532471,128.82,128.77,2.14583279]
[1768902411249,1.95838485,128.81,128.77,2.14583279]
[1768902411667,5.66532471,128.81,128.77,2.14583279]
[1768902412539,3.70693986,128.81,128.77,2.14583279]
[1768902412775,1.95838485,128.79,128.75,19.14583279]
[1768902412974,1.95838485,128.78,128.75,19.14583279]
[1768902413158,1.95838485,128.78,128.75,17.0]
[1768902415444,1.95838485,128.78,128.75,26.69647876]
[1768902415781,1.95838485,128.78,128.75,9.69647876]
[1768902418251,5.75709381,128.8,128.76,1.92950581]
[1768902418463,2.05015395,128.79,128.76,1.92950581]
[1768902418783,2.05015395,128.78,128.75,1.92950581]
[1768902419691,5.75709381,128.79,128.75,1.92950581]
[1768902419976,5.75709381,128.78,128.75,1.92950581]
[1768902421978,2.05015395,128.75,128.72,9.69783925]
[1768902422369,5.75709381,128.75,128.72,1.92950581]
[1768902422883,5.75709381,128.75,128.72,9.6982795]
[1768902423678,5.75709381,128.75,128.72,7.76877369]
[1768902424679,5.75709381,128.75,128.72,9.6982795]
[1768902425461,23.11729098,128.8,128.7,1.92950581]
[1768902425462,5.75709381,128.73,128.7,1.92950581]
[1768902425668,5.75709381,128.73,128.69,26.69966058]
[1768902425669,2.05015395,128.72,128.69,26.69966058]
[1768902428676,2.05015395,128.73,128.7,1.92950581]
[1768902428864,5.75709381,128.75,128.7,1.92950581]
[1768902429177,5.75709381,128.73,128.69,46.12618944]
[1768902429356,2.05015395,128.71,128.68,9.70050204]
[1768902429558,1.99015396,128.71,128.68,9.70050204]
[1768902430082,3.70693986,128.71,128.67,26.72107358]
[1768902431089,3.70693986,128.72,128.67,26.72107358]
[1768902431261,3.70693986,128.72,128.68,1.92950581]
[1768902431467,2.05015395,128.71,128.68,1.92950581]
[1768902431965,2.05015395,128.71,128.67,26.72107358]
[1768902432386,2.05015395,128.71,128.68,1.92950581]
[1768902436185,2.05015395,128.71,128.68,9.70053468]
[1768902436891,2.05015395,128.71,128.68,1.92950581]
[1768902437292,5.75709381,128.71,128.66,1.92950581]
[1768902437514,2.05015395,128.69,128.65,19.04950581]
[1768902437788,1.99015396,128.69,128.65,26.82213997]
[1768902438179,1.99015396,128.69,128.66,9.70176998]
[1768902438767,3.70693986,128.71,128.66,9.70176998]
[1768902438964,7.76759359,128.74,128.68,1.92950581]
[1768902439181,7.76759359,128.74,128.67,7.77170348]
[1768902439182,3.71431511,128.71,128.67,9.70120929]
[1768902439888,2.05015395,128.7,128.67,9.70120929]
[1768902440494,2.05015395,128.7,128.67,1.92950581]
[1768902442975,2.05015395,128.69,128.66,9.70166699]
[1768902443294,1.91340245,128.7,128.66,9.70166699]
[1768902443683,1.91340245,128.69,128.66,9.70166699]
[1768902444776,1.91340245,128.7,128.67,2.01483136]
[1768902446503,1.91340245,128.7,128.67,9.78664497]
[1768902447394,5.62771756,128.7,128.66,2.01483136]
[1768902447595,19.42100386,128.73,128.65,19.13483136]
[1768902447596,1.91340245,128.68,128.65,19.13483136]
[1768902447987,1.91340245,128.68,128.65,26.9075669]
[1768902448187,1.91340245,128.68,128.65,19.13483136]
[1768902450003,1.91340245,128.68,128.65,26.90783385]
[1768902450595,1.91340245,128.69,128.66,2.01483136]
[1768902451296,3.71431511,128.7,128.65,0.1]
[1768902451297,1.91340245,128.67,128.65,0.1]
[1768902451495,1.91340245,128.66,128.59,2.01483136]
[1768902451699,1.91340245,128.66,128.6,2.01483136]
[1768902451700,1.91340245,128.65,128.6,2.01483136]
[1768902451899,1.91340245,128.65,128.6,26.810553]
[1768902452488,1.91340245,128.65,128.61,2.01483136]
[1768902452700,5.62771756,128.65,128.61,2.01483136]
[1768902452900,1.91340245,128.64,128.61,2.01483136]
[1768902453395,1.91340245,128.64,128.6,26.810553]
[1768902453603,1.85340246,128.64,128.6,26.810553]
[1768902453977,3.71431511,128.64,128.58,9.79157154]
[1768902454198,3.71431511,128.64,128.59,2.01483136]
[1768902454802,3.71431511,128.64,128.59,9.79147133]
[1768902455510,1.91340245,128.63,128.59,9.79147133]
[1768902458607,1.91340245,128.63,128.59,9.79147133]
[1768902459898,1.91340245,128.62,128.59,2.01483136]
[1768902460994,1.91340245,128.62,128.59,9.79141239]
[1768902462287,1.91340245,128.64,128.6,2.01483136]
[1768902462602,5.62771756,128.64,128.6,2.01483136]
[1768902462792,1.91340245,128.63,128.6,2.01483136]
[1768902463198,1.91340245,128.62,128.58,19.03483136]
[1768902463397,1.91340245,128.61,128.58,17.02]
[1768902463792,1.91340245,128.61,128.58,18.79933398]
[1768902463988,1.91340245,128.61,128.57,9.65691608]
[1768902464189,1.91340245,128.61,128.57,1.87933398]
[1768902464190,1.81169847,128.6,128.57,1.87933398]
[1768902464487,1.75169848,128.6,128.57,1.87933398]
[1768902464879,1.75169848,128.6,128.57,0.1]
[1768902465693,5.46601359,128.6,128.57,0.1]
[1768902465890,1.75169848,128.6,128.57,0.1]
[1768902466100,5.46601359,128.6,128.57,0.1]
[1768902466283,1.75169848,128.6,128.57,0.1]
[1768902468885,1.75169848,128.6,128.57,1.87933398]
[1768902469192,1.81169847,128.62,128.57,1.87933398]
[1768902469383,1.81169847,128.62,128.59,1.77933398]
[1768902471407,1.81169847,128.63,128.59,1.77933398]
[1768902471607,1.81169847,128.64,128.6,5.49364909]
[1768902471912,1.81169847,128.64,128.61,1.77933398]
[1768902472496,1.81169847,128.64,128.6,1.77933398]
[1768902473400,1.81169847,128.64,128.61,1.88972905]
[1768902474000,1.91939191,128.67,128.63,1.88972905]
[1768902474399,5.63370702,128.68,128.63,1.88972905]
[1768902474720,1.91939191,128.68,128.64,1.88972905]
[1768902475219,1.91939191,128.67,128.64,1.88972905]
[1768902475404,5.63370702,128.68,128.64,1.88972905]
[1768902475597,1.91939191,128.68,128.64,1.88972905]
[1768902475913,1.91939191,128.68,128.65,1.88972905]
[1768902476211,1.91939191,128.69,128.65,1.88972905]
[1768902477618,1.91939191,128.69,128.65,5.60404416]
[1768902477994,1.91939191,128.69,128.65,1.88972905]
[1768902478195,1.91939191,128.69,128.65,5.60404416]
[1768902479317,1.91939191,128.69,128.66,1.88972905]
[1768902479617,1.91939191,128.69,128.66,5.60404416]
[1768902480019,1.91939191,128.69,128.66,1.88972905]
[1768902480521,1.91939191,128.69,128.66,5.60404416]
[1768902481609,1.91939191,128.69,128.66,1.88972905]
[1768902483942,1.91939191,128.69,128.66,13.37625558]
[1768902484101,1.91939191,128.72,128.67,3.71431511]
[1768902484293,1.91939191,128.71,128.67,3.71431511]
[1768902485222,1.91939191,128.72,128.69,5.60404416]
[1768902485402,1.91939191,128.74,128.7,3.71431511]
[1768902485596,1.91939191,128.74,128.7,3.61385622]
[1768902485820,1.91939191,128.74,128.7,1e-08]
[1768902486825,1.91939191,128.74,128.7,6.57e-06]
[1768902487505,1.91939191,128.74,128.7,7.7700108]
[1768902487699,1.91939191,128.74,128.7,10.30455724]
[1768902488323,1.91939191,128.74,128.7,3.71431511]
[1768902489398,1.91939191,128.74,128.7,12.0064563]
[1768902489602,43.71856504,128.75,128.72,4.23647124]
[1768902489796,1.91939191,128.78,128.74,4.23647124]
[1768902490057,27.17281577,128.81,128.75,4.23647124]
[1768902490058,3.63370702,128.8,128.75,4.23647124]
[1768902490227,3.71431511,128.8,128.75,4.23647124]
[1768902490404,3.71431511,128.8,128.75,0.52215613]
[1768902490605,7.7633724,128.81,128.75,0.52215613]
[1768902490923,3.71431511,128.8,128.75,0.52215613]
[1768902491235,11.47860491,128.8,128.75,0.52215613]
[1768902491518,11.47797372,128.81,128.76,1.88972905]
[1768902491922,3.71431511,128.81,128.76,1.88972905]
[1768902492105,1.91939191,128.81,128.77,5.60404416]
[1768902492509,0.2,128.82,128.78,5.60404416]
[1768902492510,2.11939191,128.82,128.78,5.60404416]
[1768902492726,0.2,128.82,128.79,1.88972905]
[1768902494099,0.2,128.82,128.79,13.36850943]
[1768902494303,0.2,128.82,128.8,1.88972905]
[1768902494924,0.2,128.82,128.79,1.88972905]
[1768902496505,1.91939191,128.81,128.77,1.88972905]
[1768902496802,1.91939191,128.81,128.77,26.67526776]
[1768902497001,1.91939191,128.81,128.77,30.38958287]
[1768902497212,1.91939191,128.81,128.77,26.67526776]
[1768902498526,0.2,128.82,128.78,1.88972905]
[1768902499120,0.2,128.82,128.79,1.88972905]
[1768902499329,0.2,128.82,128.79,9.65421982]
[1768902499913,0.2,128.82,128.79,1.88972905]
[1768902500904,0.2,128.82,128.8,1.88972905]
[1768902501114,0.2,128.82,128.8,1.74938775]
[1768902501621,0.2,128.82,128.78,7.76490362]
[1768902501930,1.91939191,128.81,128.77,17.02]
[1768902502610,2.11939191,128.82,128.77,17.02]